Cogmind - Beta 15 @@@ ROGUE MODE // 2025.08.10 @ 22:54:08 Player: WitherScout Result: Self-destructed Performance ------------- Evolutions (2) 1000 Regions Visited (5) 1000 Robots Destroyed (38) 190 Value Destroyed (1053) 1053 Prototype IDs (1) 20 Alien Tech Used (0) 0 Bonus (7) 7 TOTAL SCORE: 3270 Bonus ------- Follower Combat Kills 7 Cogmind --------- Core Integrity 355/550 Matter 19/400 Energy 233/240 System Corruption 0% Temperature Warm (194) Movement Treading (152) Location -8/Materials Parts ------- > --- POWER (1) -------- Nuclear Core > --- PROPULSION (2) --- Advanced Treads Medium Treads > --- UTILITY (4) ------ Medium Matter Pod Trap Scanner Seismic Detector ECM Suite > --- WEAPON (4) ------- High-powered Shotgun Flak Cannon Flak Cannon > --- INVENTORY (5) ---- Improved Ion Engine Medium Treads Medium Treads Peak State ------------ > --- POWER ------------ Light Deuterium Engine > --- PROPULSION ------- Medium Treads Medium Treads > --- UTILITY ---------- Trap Scanner Experimental Sensor Array Seismic Detector ECM Suite > --- WEAPON ----------- Flak Cannon Flak Cannon Flak Cannon Flak Cannon > --- INVENTORY -------- Improved Ion Engine Nuclear Core Medium Treads Medium Treads [Rating: 38] Favorites ----------- Power Light Deuterium Engine Engine Light Deuterium Engine Power Core Nuclear Core Propulsion Wheel Treads Medium Treads Wheel Wheel Utility Seismic Detector Device Seismic Detector Storage Small Storage Unit Weapon Flak Cannon Energy Gun EM Pulse Gun Energy Cannon Heavy Particle Cannon Ballistic Gun Light Assault Rifle Ballistic Cannon Flak Cannon Slashing Weapon Katana Special Melee Weapon Datajack Build | -11 -10 -10 -9 -9 -8 ------- Run | Yrd Mat Min Mat Min Mat Slots Evolved 4 | . . . 2 . 2 Power . | . . . . . . Propulsion . | . . . . . . Utility 2 | . . . . . 2 Weapon 2 | . . . 2 . . Parts Attached 37 | 8 4 3 1 5 16 Power 7 | 2 . 1 . 1 3 Engine 5 | 2 . 1 . 1 1 Core 2 | . . . . . 2 Reactor . | . . . . . . Propulsion 7 | 2 . . . 2 3 Treads 3 | . . . . . 3 Leg . | . . . . . . Wheel 4 | 2 . . . 2 . Hover . | . . . . . . Flight . | . . . . . . Utility 6 | 2 . . . 1 3 Device 4 | 1 . . . 1 2 Storage 2 | 1 . . . . 1 Processor . | . . . . . . Hackware . | . . . . . . Protection . | . . . . . . Artifact . | . . . . . . Weapon 17 | 2 4 2 1 1 7 Energy Gun 1 | 1 . . . . . Energy Cannon 1 | . . . . . 1 Ballistic Gun 9 | 1 3 2 1 . 2 Ballistic Cannon 4 | . . . . . 4 Launcher . | . . . . . . Special Weapon . | . . . . . . Impact Weapon . | . . . . . . Slashing Weapon 1 | . . . . 1 . Piercing Weapon . | . . . . . . Special Melee Weapon 1 | . 1 . . . . Unidentified Prototypes 1 | . . . . 1 . Parts Lost 11 | . . . . 6 5 Power 3 | . . . . 1 2 Propulsion 3 | . . . . 2 1 Utility . | . . . . . . Weapon 5 | . . . . 3 2 Highest Loss Streak 6 | . . . . 6 2 To Critical Strikes . | . . . . . . Average Backups 4 | 2 7 8 6 3 2 Power 2 | 1 2 2 2 2 1 Propulsion 1 | 1 3 2 2 . . Utility . | . . . 1 . . Weapon . | . 2 2 . . . Tool/Special . | . . . . . . Unused Backups 7 | . 3 1 . . 3 Power 3 | . 2 . . . 1 Propulsion 3 | . . 1 . . 2 Utility . | . . . . . . Weapon 1 | . 1 . . . . Tool/Special . | . . . . . . Average Slot Usage (%) 96 | . 100 100 96 79 98 Engine 9 | . 14 14 11 10 7 Treads 1 | . . . . . 3 Wheel 18 | . 28 28 22 14 14 Device 26 | . 14 14 11 19 35 Storage 4 | . 14 14 11 2 . Energy Gun 1 | . 5 . . . . Ballistic Gun 10 | . 16 27 40 23 2 Ballistic Cannon 18 | . . . . . 31 Slashing Weapon 1 | . . . . 9 . Special Melee Weapon 1 | . 6 . . . . Peak Build Rating 38 | 7 7 8 10 19 38 Average Rating 21 | 5 6 7 9 16 31 On Entrance 8 | . 7 7 8 10 19 Naked Turns . | . . . . . . Heaviest Build 37 | 14 14 13 13 15 37 Greatest Support 56 | 32 32 32 32 20 56 Greatest Overweight (x) 4 | 2 . . . 4 3 Average Overweight (x) . | . . . . . . Largest Inventory Capacity 8 | 8 8 8 8 8 5 Average Capacity 6 | 7 8 8 8 5 5 Most Carried 8 | 7 8 8 7 6 5 Average Carried 4 | 2 7 7 6 4 2 Final Capacity 8 | 8 8 8 8 5 5 Final Carried 8 | 7 8 8 6 5 3 Class Distribution -------------------- 46% | Scavenger-Skirmisher 33% | Mutant 10% | Scavenger-Mutant 8% | Skirmisher Dominant Class ---------------- Mutant | -10/Materials Mutant | -10/Mines Scavenger-Gunner | -9/Materials Scavenger-Mutant | -9/Mines Scavenger-Skirmisher | -8/Materials Resources | -11 -10 -10 -9 -9 -8 ----------- Run | Yrd Mat Min Mat Min Mat Matter Collected 1118 | 285 39 101 . 81 612 Remotely . | . . . . . . Salvage Created 840 | 133 137 66 . 81 423 Parts 67 | 13 6 10 . 6 32 Haulers Intercepted . | . . . . . . Recyclers Shooed 2 | 1 . . . . 1 Parts Field Recycled . | . . . . . . Retrieved Matter . | . . . . . . Parts Self-Destructed . | . . . . . . Prevented . | . . . . . . Kills | -11 -10 -10 -9 -9 -8 ------- Run | Yrd Mat Min Mat Min Mat Combat Hostiles Destroyed 28 | . 2 5 . 2 19 Guns 11 | . . 5 . 2 4 Cannons 15 | . . . . . 15 AOE 2 | . 2 . . . . Classes Destroyed 10 | 2 2 1 . 1 4 Worker 2 | . . . . . 2 Tunneler 4 | 4 . . . . . Recycler 1 | 1 . . . . . Watcher 3 | . 2 . . . 1 Swarmer 10 | . . 5 . . 5 Grunt 12 | . 2 . . 1 9 Duelist 1 | . . . . 1 . Sentry 2 | . . . . . 2 Specialist 2 | . . . . . 2 Heavy 1 | . . . . . 1 Best Kill Streak 6 | 5 2 3 . 2 6 Combat Bots Only 6 | . 2 3 . 2 6 Max Kills in Single Turn 3 | 2 2 1 . 2 3 Gunslinging 1 | . . . . 1 . Exploded 2 | . 2 . . . . Melee . | . . . . . . Uniques/NPCs Destroyed . | . . . . . . Combat | -11 -10 -10 -9 -9 -8 -------- Run | Yrd Mat Min Mat Min Mat Hostile Shots Fired 205 | . 10 39 3 24 129 Missed 51 | . 2 6 1 4 38 Hits 154 | . 8 33 2 20 91 Melee 10 | . . . . 10 . Projectile 144 | . 8 33 2 10 91 Critical Strikes 7 | . . . . 6 1 Damage Taken 2117 | 29 138 252 21 434 1243 Core 410 | 29 16 103 10 57 195 Absorbed by Shields . | . . . . . . Core Remaining (%) 70 | 88 . 40 . 83 . Volleys Fired 77 | 5 7 16 . 7 42 Largest 4 | 2 2 2 . 4 4 Hottest 148 | 60 60 40 . 80 148 Shots Fired 214 | 10 14 30 . 21 139 Gun 103 | 10 14 30 . 21 28 Cannon 111 | . . . . . 111 Launcher . | . . . . . . Special . | . . . . . . Kinetic 200 | 5 10 30 . 21 134 Thermal 5 | . . . . . 5 Explosive . | . . . . . . Electromagnetic 9 | 5 4 . . . . Robot Hit Streak 8 | 6 7 3 . 4 8 Robot Miss Streak 16 | 1 1 6 . 1 16 Penetration Max . | . . . . . . Secondary Targets 2 | . . 1 . 1 . Max Gunslinging Chain 1 | . . 1 . 1 . Shots Hit Robots 141 | 8 15 14 . 16 88 Core Hits 112 | 6 8 6 . 6 86 Critical Kills . | . . . . . . Critical Parts Destroyed . | . . . . . . Critical Strikes . | . . . . . . Melee Attacks 10 | . 8 1 . 1 . Impact . | . . . . . . Slashing . | . . . . . . Piercing . | . . . . . . Sneak Attacks 5 | . 5 . . . . Combat Hostiles . | . . . . . . Follow-up Attacks . | . . . . . . Damage Inflicted 2324 | 162 166 121 . 128 1747 Guns 663 | 98 81 121 . 128 235 Cannons 1512 | . . . . . 1512 Explosions 149 | 64 85 . . . . Melee . | . . . . . . Ramming . | . . . . . . Kinetic 2015 | 32 37 121 . 128 1697 Thermal 199 | 64 85 . . . 50 Explosive . | . . . . . . Electromagnetic 110 | 66 44 . . . . Impact . | . . . . . . Slashing . | . . . . . . Piercing . | . . . . . . Highest Corruption . | . . . . . . Average Corruption . | . . . . . . Corruption Purged . | . . . . . . Corruption Blocked . | . . . . . . Overload Shots . | . . . . . . Overflow Damage . | . . . . . . Projectiles . | . . . . . . Explosions . | . . . . . . Melee . | . . . . . . Knockbacks 38 | . . . . . 38 Impact . | . . . . . . Kinetic 33 | . . . . . 33 Secondary 5 | . . . . . 5 Self-Inflicted Damage 84 | 29 55 . . . . Shots 2 | 1 1 . . . . Rammed . | . . . . . . Targets Rammed . | . . . . . . Kicked . | . . . . . . Crushed . | . . . . . . Highest Temperature 318 | 52 59 . . 66 318 Average Temperature 104 | 29 28 . . 38 120 Received Heat Transfer 513 | . 27 . 12 60 414 Effects 1 | . . . . . 1 Energy Bleed 1 | . . . . . 1 Siege Activations . | . . . . . . Martial Activations . | . . . . . . Shielding Activations . | . . . . . . Robots Disrupted . | . . . . . . Combat Hostiles . | . . . . . . Robots Corrupted . | . . . . . . Combat Hostiles . | . . . . . . Parts Fried 1 | . 1 . . . . Impact Corruptions . | . . . . . . Robots Melted . | . . . . . . Combat Hostiles . | . . . . . . Parts Melted . | . . . . . . Heat Transferred 224 | 100 50 . . . 74 Parts Sabotaged . | . . . . . . Parts Stolen . | . . . . . . Parts Stripped . | . . . . . . Power Chain Reactions 2 | 1 1 . . . . Alert | -11 -10 -10 -9 -9 -8 ------- Run | Yrd Mat Min Mat Min Mat Maximum Alert Level 1 | . . . . . 1 Low Security (%) 93 | 100 100 100 100 100 89 Level 1 6 | . . . . . 10 Level 2 . | . . . . . . Level 3 . | . . . . . . Level 4 . | . . . . . . Level 5 . | . . . . . . High Security . | . . . . . . Max Security . | . . . . . . Peak Influence 315 | 20 53 50 11 50 315 Initial 11 | . . 2 11 . . Average 23 | 4 1 15 8 8 36 Influence Increases 782 | 25 67 120 . 50 520 Destroy 0b10 Robot/C 580 | . 40 100 . 40 400 Destroy 0b10 Robot/NC 50 | 25 10 . . . 15 Destroy Leader 116 | . 14 20 . 10 72 Allied During Kill 5 | . . . . . 5 Trap Triggered on 0b10 10 | . . . . . 10 Disable Machine 15 | . . . . . 15 Destroy Structure 6 | . 3 . . . 3 Influence Decreases 467 | 25 60 97 29 51 205 Entered New Map 25 | . . 5 19 1 . Time Decay 309 | 25 17 92 10 50 115 Lost Part 50 | . . . . . 50 Lost Ally 40 | . . . . . 40 Purge Threat 43 | . 43 . . . . Squads Dispatched 8 | . . . 1 . 7 Investigation 1 | . . . . . 1 Extermination . | . . . . . . Reinforcement 4 | . . . 1 . 3 Assault . | . . . . . . Garrison 3 | . . . . . 3 Intercept . | . . . . . . Searches Triggered . | . . . . . . Construction Impeded . | . . . . . . Haulers Reinforced . | . . . . . . Active Scanning Responses . | . . . . . . Cargo Convoy Interrupts . | . . . . . . Stealth | -11 -10 -10 -9 -9 -8 --------- Run | Yrd Mat Min Mat Min Mat Distress Signals 3 | . . . . . 3 Communications Jammed . | . . . . . . Distress Signals . | . . . . . . Times Spotted 50 | . 8 6 1 2 33 Peak Tracking Total 5 | . 4 3 1 2 5 Tactical Retreats 4 | . . . . . 4 Traps | -11 -10 -10 -9 -9 -8 ------- Run | Yrd Mat Min Mat Min Mat Traps Triggered . | . . . . . . Indirectly . | . . . . . . Trap Hack Attempts . | . . . . . . Triggered . | . . . . . . Disarmed . | . . . . . . Reprogrammed . | . . . . . . Reused 1 | . . . . . 1 Traps Extracted . | . . . . . . Installed 3 | . . . . . 3 Triggered 1 | . . . . . 1 Most Traps Carried 3 | . . . . 3 3 Machines | -11 -10 -10 -9 -9 -8 ---------- Run | Yrd Mat Min Mat Min Mat Machines Disabled 1 | . . . . . 1 Max in Single Turn 1 | . . . . . 1 Machines Repaired . | . . . . . . Machines Dismantled . | . . . . . . Machines Sabotaged . | . . . . . . Overloaded Fab Kills . | . . . . . . Hacking | -11 -10 -10 -9 -9 -8 --------- Run | Yrd Mat Min Mat Min Mat Machines Accessed 4 | . 3 . . . 1 Terminals 4 | . 3 . . . 1 Fabricators . | . . . . . . Repair Stations . | . . . . . . Recycling Units . | . . . . . . Scanalyzers . | . . . . . . Garrison Access . | . . . . . . Total Hacks 10 | . 9 . . . 1 Successful 4 | . 4 . . . . Failed 6 | . 5 . . . 1 Catastrophic 2 | . 1 . . . 1 Database Lockouts . | . . . . . . Manual 2 | . . . . . 2 Terminals 10 | . 9 . . . 1 Fabricators . | . . . . . . Repair Stations . | . . . . . . Recycling Units . | . . . . . . Scanalyzers . | . . . . . . Garrison Access . | . . . . . . Terminal Hacks 4 | . 4 . . . . Record 1 | . 1 . . . . Unreport Threat 1 | . 1 . . . . Dispatch Records 1 | . 1 . . . . Zone Layout 1 | . 1 . . . . Fabricator Hacks . | . . . . . . Repair Station Hacks . | . . . . . . Recycling Unit Hacks . | . . . . . . Scanalyzer . | . . . . . . Garrison Access Hacks . | . . . . . . Unauthorized Hacks . | . . . . . . Terminals . | . . . . . . Fabricators . | . . . . . . Repair Stations . | . . . . . . Recycling Units . | . . . . . . Scanalyzers . | . . . . . . Garrison Access . | . . . . . . Data Cores Recovered . | . . . . . . Used . | . . . . . . Hacking Detections 2 | . 1 . . . 1 Full Trace Events 1 | . . . . . 1 Feedback Events . | . . . . . . Feedback Blocked . | . . . . . . Robot Schematics Acquired . | . . . . . . Robots Built . | . . . . . . Authchips . | . . . . . . Time . | . . . . . . Total Robot Build Rating . | . . . . . . Part Schematics Acquired . | . . . . . . Parts Built . | . . . . . . Authchips . | . . . . . . Time . | . . . . . . Total Part Build Rating . | . . . . . . Parts Repaired . | . . . . . . Time . | . . . . . . Parts Recycled . | . . . . . . Recycled Matter . | . . . . . . Retrieved Matter . | . . . . . . Retrieved Components . | . . . . . . Parts Scanalyzed . | . . . . . . Part Schematics Acquired . | . . . . . . Parts Damaged . | . . . . . . Bothacking | -11 -10 -10 -9 -9 -8 ------------ Run | Yrd Mat Min Mat Min Mat Used RIF Installer . | . . . . . . Robots Hacked 5 | . 3 1 . 1 . Non-combat 3 | . 3 . . . . Combat 2 | . . 1 . 1 . Robot Hacks Applied 5 | . 3 1 . 1 . parse_system 3 | . 1 1 . 1 . no_distress 2 | . 2 . . . . Relay Couplers Released . | . . . . . . Fabnet Peak Effective % . | . . . . . . Robots Rewired . | . . . . . . Allies Hacked . | . . . . . . Hacks Repelled . | . . . . . . Allies | -11 -10 -10 -9 -9 -8 -------- Run | Yrd Mat Min Mat Min Mat Total Allies 2 | . . . . 2 . Largest Group 2 | . . . . 2 2 Highest-Rated Group 39 | . . . . 39 39 Highest-Rated Ally 31 | . . . . 31 31 Total Orders . | . . . . . . Ally Attacks 8 | . . . . . 8 Total Damage 111 | . . . . . 111 Kills 1 | . . . . . 1 Allies Corrupted . | . . . . . . Allies Melted . | . . . . . . Intel | -11 -10 -10 -9 -9 -8 ------- Run | Yrd Mat Min Mat Min Mat Active Infowar (turns) 2650 | 43 479 315 26 287 1500 Sensors 1677 | . . . . 243 1434 Traps 1478 | . . . . . 1478 Seismic 2650 | 43 479 315 26 287 1500 ECM 1455 | . . . . . 1455 Robot Analysis Total . | . . . . . . Derelict Logs Recovered . | . . . . . . Drone Launches . | . . . . . . Drone Recoveries . | . . . . . . Exploration | -11 -10 -10 -9 -9 -8 ------------- Run | Yrd Mat Min Mat Min Mat Turns Passed 2739 | 116 479 315 26 287 1516 Spaces Moved 1101 | 86 330 240 24 168 253 Core 40 | 7 . . . 33 . Treads 91 | . . . . . 91 Legs . | . . . . . . Wheels 970 | 79 330 240 24 135 162 Hover . | . . . . . . Flight . | . . . . . . Fastest Speed 50 | 50 100 100 100 80 80 Average Speed 106 | 98 100 100 100 111 118 Slowest Speed 250 | 150 100 100 100 250 240 Overloaded Moves . | . . . . . . Propulsion Burnouts . | . . . . . . Robots Hopped . | . . . . . . Potential Cave-ins . | . . . . . . Cave-ins Triggered . | . . . . . . Exploration Rate (%) 25 | 4 39 60 4 21 26 Regions Visited 5 Branch Regions 2 Pre-discovered Areas . | . . . . . . Known Exits Taken . | . . . . . . Unknown Exits Taken 5 | 1 1 1 1 1 . Scrap Searched 1 | . . 1 . . . Spaces Dug . | . . . . . . Terrain Destroyed 4 | . 2 . . . 2 Melee . | . . . . . . Projectile 2 | . . . . . 2 AOE 2 | . 2 . . . . Terrain Rammed . | . . . . . . Walls Destroyed . | . . . . . . Machines Disabled . | . . . . . . Actions | -11 -10 -10 -9 -9 -8 --------- Run | Yrd Mat Min Mat Min Mat Total 2507 | 104 462 290 25 252 1374 Wait 1229 | . 103 24 . 63 1039 Move 1096 | 85 329 239 23 167 253 Hop . | . . . . . . Pick Up 20 | 6 4 2 . 3 5 Fast Attach 30 | 7 2 2 . 5 14 Attach 9 | . . . 2 4 3 Detach 1 | . . . . . 1 Swap 8 | 1 4 2 . 1 . Drop 24 | . 5 4 . 1 14 Fire 77 | 5 7 16 . 7 42 Melee 10 | . 8 1 . 1 . Ram . | . . . . . . Kick . | . . . . . . Crush . | . . . . . . Escape Stasis . | . . . . . . Rewire . | . . . . . . Trap 3 | . . . . . 3 Miscellaneous . | . . . . . . Route ------- -11/Scrapyard -10/Materials (discovered 2 exits: [Mat] / [*Min]) -10/Mines -9/Materials -9/Mines -8/Materials History --------- Turn | Location | Event 33 | -11/Scrapyard | Discovered new exit (range 16) 117 | -11/Scrapyard | Entered Materials 327 | -10/Materials | Build established: Mutant 430 | -10/Materials | Discovered new exit (range 18) 548 | -10/Materials | Discovered new exit (range 9) 596 | -10/Materials | Entered Mines 698 | -10/Mines | Found a damaged Exp. Sensor Array with a note attached 701 | -10/Mines | Found Prototype Device 854 | -10/Mines | Discovered new exit (range 10) 859 | -10/Mines | Core integrity fell below 50% 911 | -10/Mines | Entered Materials 911 | -9/Materials | Evolved 2 slots: Weapon x2 913 | -9/Materials | Discovered new exit (range 7) 937 | -9/Materials | Entered Mines 949 | -9/Mines | Met a Derelict bent on vengeance 981 | -9/Mines | Identified Exp. Sensor Array 992 | -9/Mines | Lost 6 parts (1p2n3w) 1047 | -9/Mines | Found a hidden stash of uninstalled traps 1189 | -9/Mines | Discovered new exit (range 4) 1224 | -9/Mines | Entered Materials 1224 | -8/Materials | Accompanied by 2 allies 1224 | -8/Materials | Evolved 2 slots: Utility x2 1230 | -8/Materials | Led the pair of lost Derelicts to an unsafe place 1538 | -8/Materials | Build established: Scavenger-Skirmisher 2427 | -8/Materials | Garrison activated, responded to threat 2740 | -8/Materials | Self-destructed Last Messages --------------- K-01 Serf collects debris. A-02 Transporter destroyed. G-47 Trooper knocked back. K-01 Serf collects debris. G-47 Trooper destroyed. K-01 Serf collects debris. G-47 Trooper knocked back. K-01 Serf destroyed. Acquired 10 matter. Flak Cannon destroyed. K-01 Serf collects debris. Acquired 50 matter. Critical hit (Burn: +37). G-47 Trooper knocked back. G-47 Trooper destroyed. Flak Cannon destroyed. K-01 Serf collects debris. Acquired 23 matter. K-01 Serf collects debris. Y-45 Defender destroyed. Map ----- +----------------------------------------------------+ | ?????????????????????????????????????"" ?# ### | | ????????????????????????????????????? # | | ?????????????????????????????????????? " + | | ?????????????????????????????????????????# | | ?????????????????????????????????????????# | | ????????????????????????????????????? ??# | | ??????????????????????????????############ | | ??????????????????????????????# ## """ ] | | ??????????????????????????????# ## """ ] | | ??????????????????????????????# # """ | | ??????????????????????????????# "" + | | ?????????????????????????????## """ ] # | | ?????????????????????????????#T """" ## ####### | | ?????????????????????????????## """" ## #####? | | ??????????????????????????????# """ ## ## | | ??????????????????????????????############ ## | | ?????????????????????????????????????????# !!## | | ?????????????????????????????????????????# !!## | | ?????????????????????????????????????????# ==## | | ???????????#?????????????????????????????# ==### | | ???????????# ????????????????????????????# #####?? | | ???????????# ???????????????????????????# #?????? | | ???????????# ??????????????????????????# #?????? | | ??????????## #?????????????#######?????# #?????? | | ????####### ############## #?????# #?????? | | ??? w!ra==!@ k a ####### ####### | | ??? % %! = =a | | ??? *%=== k ############### | | ?????????## ###+########## #?????????????? | | ?????????####+##### =#?### ###?????????????? | | ?????????# # "" !*#???# #???????????????? | | ?????????# """ + """" #???# #???????????????? | | ?????????# """ # """"" =#???# #???????????????? | | ?????????? """ # """""=!#???# #???????????????? | | ?????????? ?# """ #???# #???????????????? | | ??????????? """?# #???# #???????????????? | | ??????????/[ ""??# #???# +???????????????? | | ??????????/! ""??# #???# #???????????????? | | ?????????? ???##########???# ???????????????? | | ?????????#?????????????????????? #???????????????? | | ???????????????????????????????? ????????????????? | | ???????????????????????????????? ????????????????? | | ???????????????????????????????? ????????????????? | | ???????????????????????????????? ????????????????? | | ????????????????????????????????#????????????????? | | ?????????????????????????????????????????????????? | | ?????????????????????????????????????????????????? | | ?????????????????????????????????????????????????? | | ?????????????????????????????????????????????????? | | ?????????????????????????????????????????????????? | +----------------------------------------------------+ Best States ------------- Heat Dissipation 31 Energy Generation 14 Energy Capacity 265 Matter Stores 300 Matter Capacity 400 Sight Range 16 Robot Scan Range 20 Terrain Scan Density 10 ECM Strength 1 Evasion (%) 44 Recoil Reduction 2 Item Schematics ----------------- None Robot Schematics ------------------ None Fabricated ------------ Nothing Repaired ---------- Nothing Alien Tech Used ----------------- None Achievements -------------- Everything Is Under Control More Dakka Please Challenges ------------ None Game ------ Seed ShadeDirtyRecalibrator Manual? 0 Play Time 00:38:27 Cumulative 2.6 hours Start 2025.08.10 @ 22:16:16 End 2025.08.10 @ 22:54:08 Sessions 1 Manual Loads 0 Difficulty Rogue Special Mode None Game No. 5 Rogue 5 Adventurer 0 Explorer 0 Win Type - Total 0 Types 0/0/0/0/0/0/0/0/0/0 Lore% 0 Gallery% 7 Achievement% 9 Wizard Run 0 Options --------- Layout 1 ASCII 1 Keyboard 0 Movement Numpad Keybinds 0 Fullscreen 1 Font 24/Cog Map View 50x35 Zoom Use 0% Tactical HUD 0 Map Filters NONE Filters NONE Steam 0 RUN: db06e77f-b6a1-4d83-a8d9-9fa71f170c4a